fUST/lending_fUST_20250603
["ID","MTS","AMOUNT","RATE_DAILY","PERIOD"]
[363822174,1748887836861,-440.0,0.00019178,2]
[363822175,1748887836875,-428.94490726,0.00019178,2]
[363822176,1748887836887,-440.0,0.00019178,2]
[363822177,1748887836900,-440.0,0.00019178,2]
[363822178,1748887836912,-440.0,0.00019178,2]
[363822179,1748887836922,-440.0,0.00019178,2]
[363822180,1748887836935,-440.0,0.00019178,2]
[363822181,1748887836948,-380.0,0.00019178,2]
[363822182,1748887836960,-440.0,0.00019178,2]
[363822183,1748887836971,-440.0,0.00019178,2]
[363822184,1748887836984,-895.61,0.00019178,2]
[363822185,1748887836996,-716.76,0.00019178,2]
[363822186,1748887837010,-440.0,0.00019178,2]
[363822187,1748887837022,-924.88,0.00019178,2]
[363822188,1748887837034,-440.0,0.00019178,2]
[363822189,1748887837047,-2161.52,0.00019178,2]
[363822190,1748887837060,-720.09,0.00019178,2]
[363822191,1748887837072,-1012.32,0.00019178,2]
[363822192,1748887837084,-765.99,0.00019178,2]
[363822193,1748887837096,-440.0,0.00019178,2]
[363822194,1748887837109,-695.63,0.00019178,2]
[363822195,1748887837120,-277.924172,0.00019178,2]
[363822196,1748887837130,-1411.42197363,0.00019314,2]
[363822197,1748887837141,-440.0,0.00019452,2]
[363822198,1748887837153,-440.0,0.00019452,2]
[363822199,1748887837163,-632.53,0.00019452,2]
[363822200,1748887837173,-879.0,0.00019452,2]
[363822201,1748887837186,-1283.18,0.00019452,2]
[363822202,1748887837196,-440.0,0.00019452,2]
[363822203,1748887837206,-440.0,0.00019452,2]
[363822204,1748887837217,-440.0,0.00019452,2]
[363822206,1748887837230,-151.98802877,0.00019452,2]
[363822208,1748887837241,-440.0,0.00019452,2]
[363822211,1748887837264,-440.0,0.00019452,2]
[363822214,1748887837282,-895.61,0.00019452,2]
[363822216,1748887837298,-716.76,0.00019452,2]
[363822219,1748887837313,-440.0,0.00019452,2]
[363822221,1748887837326,-924.88,0.00019452,2]
[363822224,1748887837342,-440.0,0.00019452,2]
[363822227,1748887837355,-2161.52,0.00019452,2]
[363822228,1748887837370,-720.09,0.00019452,2]
[363822229,1748887837383,-1012.32,0.00019452,2]
[363822230,1748887837397,-765.99,0.00019452,2]
[363822231,1748887837409,-440.0,0.00019452,2]
[363822232,1748887837420,-695.63,0.00019452,2]
[363822233,1748887837431,-3385.68,0.00019492,2]
[363822235,1748887837441,-500.0,0.00019504,2]
[363822237,1748887837452,-1411.42197363,0.00019555,2]
[363822238,1748887837464,-607.398,0.00019609,2]
[363822239,1748887837476,-440.0,0.00019726,2]
[363822240,1748887837490,-440.0,0.00019726,2]
[363822241,1748887837503,-632.53,0.00019726,2]
[363822242,1748887837514,-879.0,0.00019726,2]
[363822243,1748887837525,-1283.18,0.00019726,2]
[363822244,1748887837538,-419.82538955,0.00019726,2]
[363822246,1748887837550,-440.0,0.00019726,2]
[363822249,1748887837561,-440.0,0.00019726,2]
[363822251,1748887837575,-440.0,0.00019726,2]
[363822253,1748887837587,-440.0,0.00019726,2]
[363822255,1748887837598,-895.61,0.00019726,2]
[363822258,1748887837609,-716.76,0.00019726,2]
[363822260,1748887837620,-440.0,0.00019726,2]
[363822262,1748887837630,-924.88,0.00019726,2]
[363822264,1748887837643,-440.0,0.00019726,2]
[363822266,1748887837654,-2161.52,0.00019726,2]
[363822269,1748887837665,-720.09,0.00019726,2]
[363822271,1748887837677,-1012.32,0.00019726,2]
[363822273,1748887837688,-765.99,0.00019726,2]
[363822275,1748887837700,-192.04,0.00019726,2]
[363822278,1748887837712,-695.63,0.00019726,2]
[363822280,1748887837726,-1400.0,0.00019766,2]
[363822282,1748887837738,-1411.42197363,0.00019797,2]
[363822285,1748887837750,-500.0,0.00019973,2]
[363822287,1748887837762,-500.0,0.00019973,2]
[363822289,1748887837775,-500.0,0.00019999,2]
[363822291,1748887837786,-500.0,0.00019999,2]
[363822294,1748887837798,-500.0,0.00019999,2]
[363822296,1748887837810,-500.0,0.00019999,2]
[363822298,1748887837822,-500.0,0.00019999,2]
[363822301,1748887837833,-500.0,0.00019999,2]
[363822303,1748887837847,-500.0,0.00019999,2]
[363822305,1748887837857,-641.34,0.00019999,2]
[363822307,1748887837868,-1060.0,0.0002,2]
[363822309,1748887837879,-49092.36015231,0.0002,2]
[363822362,1748887838532,-440.0,0.00016712,2]
[363822363,1748887838553,-440.0,0.00016986,2]
[363822364,1748887838563,-440.0,0.0001726,2]
[363822365,1748887838573,-327.67538501,0.00017409,2]
[363822366,1748887838582,-440.0,0.00017534,2]
[363822367,1748887838592,-440.0,0.00017808,2]
[363822368,1748887838601,-123.88537699,0.00018082,2]
[363822369,1748887838614,-316.11462301,0.00018082,2]
[363822370,1748887838623,-440.0,0.00018356,2]
[363822371,1748887838633,-333.76276722,0.00018356,2]
[363822372,1748887838644,-106.23723278,0.00018356,2]
[363822373,1748887838654,-327.67538501,0.00018479,2]
[363822374,1748887838664,-440.0,0.0001863,2]
[363822375,1748887838674,-440.0,0.0001863,2]
[363822376,1748887838683,-440.0,0.00018904,2]
[363822377,1748887838694,-440.0,0.00018904,2]
[363822378,1748887838703,-440.0,0.00019178,2]
[363822379,1748887838713,-440.0,0.00019178,2]
[363822380,1748887838726,-440.0,0.00019452,2]
[363822381,1748887838736,-440.0,0.00019452,2]
[363822382,1748887838746,-440.0,0.00019726,2]
[363822383,1748887838755,-440.0,0.00019726,2]
[363822384,1748887838765,-76143.37168269,0.0002,2]
[363822385,1748887838775,-440.0,0.0002,2]
[363822386,1748887838785,-440.0,0.0002,2]
[363822387,1748887838795,-632.53,0.0002,2]
[363822388,1748887838804,-879.0,0.0002,2]
[363822389,1748887838814,-1283.18,0.0002,2]
[363822390,1748887838823,-440.0,0.0002,2]
[363822391,1748887838833,-440.0,0.0002,2]
[363822392,1748887838846,-440.0,0.0002,2]
[363822393,1748887838855,-440.0,0.0002,2]
[363822394,1748887838864,-895.61,0.0002,2]
[363822395,1748887838874,-716.76,0.0002,2]
[363822396,1748887838885,-440.0,0.0002,2]
[363822397,1748887838894,-924.88,0.0002,2]
[363822398,1748887838903,-440.0,0.0002,2]
[363822399,1748887838913,-2161.52,0.0002,2]
[363822400,1748887838924,-720.09,0.0002,2]
[363822401,1748887838934,-1012.32,0.0002,2]
[363822402,1748887838943,-765.99,0.0002,2]
[363822403,1748887838953,-695.63,0.0002,2]
[363822404,1748887838962,-440.0,0.0002,2]
[363822405,1748887838974,-440.0,0.0002,2]
[363822406,1748887838983,-1411.42197363,0.00020038,2]
[363822407,1748887838993,-440.0,0.00020273,2]
[363822408,1748887839002,-440.0,0.00020273,2]
[363822409,1748887839012,-632.53,0.00020273,2]
[363822410,1748887839021,-879.0,0.00020273,2]
[363822411,1748887839031,-1283.18,0.00020273,2]
[363822412,1748887839040,-440.0,0.00020273,2]
[363822413,1748887839049,-440.0,0.00020273,2]
[363822414,1748887839058,-440.0,0.00020273,2]
[363822415,1748887839068,-440.0,0.00020273,2]
[363822416,1748887839077,-895.61,0.00020273,2]
[363822417,1748887839088,-716.76,0.00020273,2]
[363822418,1748887839097,-440.0,0.00020273,2]
[363822419,1748887839106,-924.88,0.00020273,2]
[363822420,1748887839116,-440.0,0.00020273,2]
[363822421,1748887839127,-2161.52,0.00020273,2]
[363822422,1748887839136,-720.09,0.00020273,2]
[363822423,1748887839145,-1012.32,0.00020273,2]
[363822424,1748887839155,-765.99,0.00020273,2]
[363822425,1748887839164,-695.63,0.00020273,2]
[363822426,1748887839173,-347.73854686,0.00020273,2]
[363822427,1748887839182,-440.0,0.00020273,2]
[363822428,1748887839192,-1411.42197363,0.00020279,3]
[363822429,1748887839201,-261.79190508,0.00020292,2]
[363822430,1748887839211,-4514.24,0.00020339,2]
[363822431,1748887839220,-500.0,0.00020521,2]
[363822432,1748887839232,-1000.0,0.00020521,2]
[363822433,1748887839241,-1411.42197363,0.00020521,3]
[363822434,1748887839251,-440.0,0.00020547,2]
[363822435,1748887839260,-440.0,0.00020547,2]
[363822436,1748887839269,-500.0,0.00020547,2]
[363822437,1748887839279,-632.53,0.00020547,2]
[363822439,1748887839289,-879.0,0.00020547,2]
[363822441,1748887839299,-1283.18,0.00020547,2]
[363822443,1748887839310,-440.0,0.00020547,2]
[363822445,1748887839319,-440.0,0.00020547,2]
[363822447,1748887839329,-440.0,0.00020547,2]
[363822448,1748887839338,-440.0,0.00020547,2]
[363822449,1748887839348,-895.61,0.00020547,2]
[363822450,1748887839357,-716.76,0.00020547,2]
[363822451,1748887839367,-440.0,0.00020547,2]
[363822452,1748887839377,-924.88,0.00020547,2]
[363822453,1748887839386,-440.0,0.00020547,2]
[363822454,1748887839396,-2161.52,0.00020547,2]
[363822455,1748887839406,-720.09,0.00020547,2]
[363822456,1748887839415,-1012.32,0.00020547,2]
[363822457,1748887839425,-765.99,0.00020547,2]
[363822458,1748887839434,-695.63,0.00020547,2]
[363822460,1748887839444,-440.0,0.00020547,2]
[363822463,1748887839453,-691.34,0.000206,2]
[363822465,1748887839462,-6153.67,0.000206,2]
[363822467,1748887839473,-1786.35,0.000206,2]
[363822468,1748887839483,-500.0,0.00020608,2]
[363822469,1748887839493,-500.0,0.00020692,2]
[363822470,1748887839503,-1411.42197363,0.00020762,3]
[363822471,1748887839512,-823.0,0.00020782,2]
[363822472,1748887839521,-440.0,0.00020821,2]
[363822473,1748887839531,-151.58,0.00020821,2]
[363822474,1748887839540,-632.53,0.00020821,2]
[363822476,1748887839550,-879.0,0.00020821,2]
[363822478,1748887839559,-1283.18,0.00020821,2]
[363822480,1748887839568,-440.0,0.00020821,2]
[363822482,1748887839578,-440.0,0.00020821,2]
[363822484,1748887839587,-440.0,0.00020821,2]
[363822486,1748887839597,-440.0,0.00020821,2]
[363822487,1748887839606,-895.61,0.00020821,2]
[363822489,1748887839616,-716.76,0.00020821,2]
[363822491,1748887839631,-440.0,0.00020821,2]
[363822493,1748887839641,-924.88,0.00020821,2]
[363822495,1748887839651,-440.0,0.00020821,2]
[363822497,1748887839660,-2161.52,0.00020821,2]
[363822499,1748887839669,-720.09,0.00020821,2]
[363822501,1748887839679,-1012.32,0.00020821,2]
[363822503,1748887839689,-765.99,0.00020821,2]
[363822505,1748887839699,-695.63,0.00020821,2]
[363822508,1748887839709,-440.0,0.00020821,2]
[363822510,1748887839718,-1400.0,0.00020862,2]
[363822511,1748887839728,-3000.0,0.00021,2]
[363822513,1748887839738,-500.0,0.00021,2]
[363822515,1748887839748,-1411.42197363,0.00021003,4]
[363822517,1748887839757,-250.0,0.00021004,2]
[363822520,1748887839767,-3000.0,0.0002101,2]
[363822522,1748887839776,-3000.0,0.0002102,2]
[363822523,1748887839786,-3000.0,0.0002103,2]
[363822525,1748887839795,-3000.0,0.0002104,2]
[363822527,1748887839804,-3000.0,0.0002105,2]
[363822529,1748887839814,-3000.0,0.0002106,2]
[363822531,1748887839825,-1500.0,0.00021068,2]
[363822533,1748887839834,-3000.0,0.0002107,2]
[363822535,1748887839849,-3000.0,0.0002108,2]
[363822537,1748887839859,-3000.0,0.0002109,2]
[363822539,1748887839868,-300.0,0.00021095,2]
[363822541,1748887839879,-500.0,0.00021095,3]
[363822543,1748887839891,-632.53,0.00021095,2]
[363822545,1748887839900,-879.0,0.00021095,2]
[363822547,1748887839909,-1283.18,0.00021095,2]
[363822549,1748887839921,-440.0,0.00021095,2]
[363822551,1748887839930,-453.72,0.00021095,2]
[363822553,1748887839940,-242.64581224,0.00021095,2]
[363822555,1748887839949,-440.0,0.00021095,2]
[363822557,1748887839959,-895.61,0.00021095,2]
[363822559,1748887839968,-716.76,0.00021095,2]
[363822561,1748887839979,-924.88,0.00021095,2]
[363822563,1748887839988,-484.56606412,0.00021095,2]
[363822565,1748887839998,-290.0,0.00021095,2]
[363822567,1748887840008,-2161.52,0.00021095,2]
[363822569,1748887840017,-720.09,0.00021095,2]
[363822571,1748887840027,-1012.32,0.00021095,2]
[363822573,1748887840036,-765.99,0.00021095,2]
[363822575,1748887840045,-695.63,0.00021095,2]
[363822577,1748887840054,-440.0,0.00021095,2]
[363822579,1748887840064,-3000.0,0.000211,2]
[363822581,1748887840073,-3000.0,0.0002111,2]
[363822583,1748887840083,-3000.0,0.0002112,2]
[363822586,1748887840092,-3000.0,0.0002113,2]
[363822588,1748887840101,-3000.0,0.0002114,2]
[363822592,1748887840112,-3000.0,0.0002115,2]
[363822595,1748887840122,-399.53640872,0.00021156,2]
[363822597,1748887840132,-500.0,0.00021156,2]
[363822599,1748887840142,-500.0,0.00021156,2]
[363822601,1748887840152,-500.0,0.00021156,2]
[363822603,1748887840161,-1000.0,0.00021156,2]
[363822605,1748887840171,-3000.0,0.0002116,2]
[363822607,1748887840181,-3150.0,0.0002117,2]
[363822609,1748887840190,-5642.79,0.00021186,2]
[363822611,1748887840200,-265.70492485,0.0002124,2]
[363822613,1748887840209,-1411.42197363,0.00021245,4]
[363822615,1748887840218,-632.53,0.00021369,2]
[363822617,1748887840229,-879.0,0.00021369,2]
[363822619,1748887840239,-1283.18,0.00021369,2]
[363822621,1748887840248,-451.28,0.00021369,2]
[363822623,1748887840258,-440.0,0.00021369,2]
[363822625,1748887840267,-895.61,0.00021369,2]
[363822627,1748887840277,-716.76,0.00021369,2]
[363822629,1748887840286,-924.88,0.00021369,2]
[363822631,1748887840296,-2161.52,0.00021369,2]
[363822633,1748887840305,-720.09,0.00021369,2]
[363822635,1748887840314,-1012.32,0.00021369,2]
[363822637,1748887840325,-765.99,0.00021369,2]
[363822639,1748887840334,-695.63,0.00021369,2]
[363822641,1748887840343,-440.0,0.00021369,2]
[363822643,1748887840354,-1411.42197363,0.00021486,5]
[363822645,1748887840364,-261.79190508,0.00021584,2]
[363822647,1748887840373,-691.34,0.000216,2]
[363822649,1748887840383,-151.0,0.00021607,2]
[363822651,1748887840392,-207.4,0.00021607,2]
[363822653,1748887840402,-151.0,0.00021607,2]
[363822655,1748887840411,-151.0,0.00021607,2]
[363822658,1748887840422,-151.0,0.00021607,2]
[363822660,1748887840431,-151.0,0.00021607,2]
[363822662,1748887840445,-151.0,0.00021607,2]
[363822664,1748887840455,-500.0,0.00021607,2]
[363822666,1748887840464,-500.0,0.00021607,2]
[363822668,1748887840474,-151.0,0.00021607,2]
[363822670,1748887840484,-500.0,0.00021607,2]
[363822672,1748887840493,-500.0,0.00021607,2]
[363822674,1748887840503,-500.0,0.00021607,2]
[363822676,1748887840513,-500.0,0.00021607,2]
[363822678,1748887840524,-226.76390347,0.00021607,2]
[363822681,1748887840535,-500.0,0.00021607,2]
[363822683,1748887840545,-500.0,0.00021607,2]
[363822685,1748887840555,-500.0,0.00021607,2]
[363822687,1748887840565,-500.0,0.00021607,2]
[363822689,1748887840574,-500.0,0.00021607,2]
[363822691,1748887840584,-500.0,0.00021607,2]
[363822693,1748887840593,-500.0,0.00021607,2]
[363822695,1748887840603,-500.0,0.00021607,2]
[363822697,1748887840613,-500.0,0.00021607,2]
[363822699,1748887840624,-500.0,0.00021607,2]
[363822701,1748887840634,-500.0,0.00021607,2]
[363822703,1748887840643,-500.0,0.00021607,2]
[363822705,1748887840653,-500.0,0.00021607,2]
[363822707,1748887840663,-500.0,0.00021607,2]
[363822709,1748887840675,-5000.0,0.00021607,2]
[363822712,1748887840687,-500.0,0.00021607,2]
[363822714,1748887840697,-500.0,0.00021607,2]
[363822716,1748887840708,-500.0,0.00021607,2]
[363822718,1748887840718,-500.0,0.00021607,2]
[363822720,1748887840729,-1841.37601661,0.00021607,2]
[363822722,1748887840739,-300.0,0.00021607,2]
[363822724,1748887840748,-300.0,0.00021607,2]
[363822726,1748887840758,-300.0,0.00021607,2]
[363822728,1748887840768,-300.0,0.00021607,2]
[363822730,1748887840778,-202.5886477,0.00021607,2]
[363822732,1748887840789,-2000.0,0.00021616,2]
[363822734,1748887840798,-500.0,0.00021619,2]
[363822736,1748887840808,-500.0,0.00021619,2]
[363822738,1748887840818,-500.0,0.00021619,2]
[363822740,1748887840827,-587.5800559,0.00021619,2]
[363822742,1748887840840,-500.0,0.00021619,2]
[363822744,1748887840852,-500.0,0.00021619,2]
[363822746,1748887840862,-500.0,0.00021619,2]
[363822749,1748887840872,-500.0,0.00021619,2]
[363822750,1748887840882,-500.0,0.00021619,2]
[363822752,1748887840892,-259.50104203,0.00021619,2]
[363822754,1748887840901,-500.0,0.00021619,2]
[363822756,1748887840910,-500.0,0.00021619,2]
[363822759,1748887840923,-500.0,0.00021643,4]
[363822761,1748887840933,-632.53,0.00021643,2]
[363822763,1748887840942,-879.0,0.00021643,2]
[363822765,1748887840951,-1283.18,0.00021643,2]
[363822767,1748887840960,-440.0,0.00021643,2]
[363822769,1748887840970,-895.61,0.00021643,2]
[363822771,1748887840980,-716.76,0.00021643,2]
[363822773,1748887840990,-924.88,0.00021643,2]
[363822775,1748887840999,-2161.52,0.00021643,2]
[363822777,1748887841009,-720.09,0.00021643,2]
[363822779,1748887841019,-1012.32,0.00021643,2]
[363822781,1748887841028,-765.99,0.00021643,2]
[363822783,1748887841037,-695.63,0.00021643,2]
[363822785,1748887841047,-440.0,0.00021643,2]
[363822787,1748887841057,-160.2722929,0.00021644,2]
[363822789,1748887841066,-572.502888,0.00021644,2]
[363822791,1748887841075,-176.5287595,0.00021644,2]
[363822793,1748887841085,-1000.0,0.00021704,2]
[363822795,1748887841095,-1000.0,0.00021704,2]
[363822797,1748887841105,-1000.0,0.00021704,2]
[363822799,1748887841114,-1000.0,0.00021704,2]
[363822801,1748887841124,-1411.42197363,0.00021728,5]
[363822803,1748887841134,-41502.0,0.000218,2]
[363822805,1748887841144,-6153.67,0.000218,2]
[363822807,1748887841154,-1786.35,0.000218,2]
[363822809,1748887841163,-5000.0,0.00021906,2]
[363822811,1748887841172,-200.0,0.00021917,2]
[363822813,1748887841182,-500.0,0.00021917,2]
[363822815,1748887841192,-527.15,0.00021917,2]
[363822817,1748887841201,-527.15,0.00021917,2]
[363822819,1748887841211,-527.15,0.00021917,2]
[363822821,1748887841220,-527.15,0.00021917,2]
[363822823,1748887841232,-527.15,0.00021917,2]
[363822825,1748887841241,-527.15,0.00021917,2]
[363822827,1748887841251,-527.15,0.00021917,2]
[363822829,1748887841261,-527.15,0.00021917,2]
[363822831,1748887841270,-527.15,0.00021917,2]
[363822833,1748887841279,-527.15,0.00021917,2]
[363822835,1748887841290,-527.15,0.00021917,2]
[363822837,1748887841299,-527.15,0.00021917,2]
[363822839,1748887841309,-527.15,0.00021917,2]
[363822841,1748887841318,-527.15,0.00021917,2]
[363822843,1748887841328,-527.15,0.00021917,2]
[363822845,1748887841338,-527.15,0.00021917,2]
[363822847,1748887841348,-527.15,0.00021917,2]
[363822849,1748887841358,-527.15,0.00021917,2]
[363822851,1748887841369,-527.15,0.00021917,2]
[363822853,1748887841378,-527.15,0.00021917,2]
[363822855,1748887841388,-527.15,0.00021917,2]
[363822857,1748887841398,-632.53,0.00021917,2]
[363822859,1748887841407,-879.0,0.00021917,2]
[363822861,1748887841416,-1283.18,0.00021917,2]
[363822863,1748887841426,-500.0,0.00021917,2]
[363822865,1748887841436,-500.0,0.00021917,2]
[363822867,1748887841447,-500.0,0.00021917,2]
[363822869,1748887841458,-500.0,0.00021917,2]
[363822870,1748887841467,-500.0,0.00021917,2]
[363822872,1748887841479,-500.0,0.00021917,2]
[363822874,1748887841490,-500.0,0.00021917,2]
[363822875,1748887841499,-500.0,0.00021917,2]
[363822876,1748887841508,-363.35405344,0.00021917,2]
[363822877,1748887841518,-500.0,0.00021917,2]
[363822878,1748887841527,-500.0,0.00021917,2]
[363822879,1748887841537,-500.0,0.00021917,2]
[363822880,1748887841546,-500.0,0.00021917,2]
[363822881,1748887841555,-440.0,0.00021917,2]
[363822882,1748887841564,-500.0,0.00021917,2]
[363822883,1748887841573,-500.0,0.00021917,2]
[363822884,1748887841582,-500.0,0.00021917,2]
[363822885,1748887841591,-500.0,0.00021917,2]
[363822886,1748887841601,-500.0,0.00021917,2]
[363822887,1748887841610,-500.0,0.00021917,2]
[363822888,1748887841619,-183.04845287,0.00021917,2]
[363822889,1748887841629,-895.61,0.00021917,2]
[363822890,1748887841638,-716.76,0.00021917,2]
[363822891,1748887841648,-924.88,0.00021917,2]
[363822892,1748887841658,-2161.52,0.00021917,2]
[363822893,1748887841667,-720.09,0.00021917,2]
[363822894,1748887841678,-1012.32,0.00021917,2]
[363822895,1748887841688,-765.99,0.00021917,2]
[363822896,1748887841698,-695.63,0.00021917,2]
[363822897,1748887841709,-323.0767398,0.00021918,7]
[363822898,1748887841719,-150.0,0.00021918,2]
[363822899,1748887841729,-1400.0,0.00021958,2]
[363822900,1748887841739,-1411.42197363,0.00021969,6]
[363822901,1748887841750,-2208.93,0.00022,2]
[363822902,1748887841761,-187.0,0.00022,2]
[363822903,1748887841882,-171.0,0.00022,2]
[363822904,1748887841914,-347.0,0.00022,2]
[363822905,1748887841927,-6771.35,0.00022034,2]
[363822906,1748887841938,-175.581,0.00022058,2]
[363822907,1748887841948,-152.51297585,0.00022155,2]
[363822908,1748887841959,-5000.0,0.00022155,2]
[363822909,1748887841969,-407969.30321,0.00022164,2]
[363822910,1748887841981,-2500.0,0.00022164,2]
[363822911,1748887841990,-12500.0,0.00022165,2]
[363822912,1748887842000,-12500.0,0.00022173,2]
[363822913,1748887842012,-12500.0,0.00022182,2]
[363822914,1748887842021,-200.0,0.00022191,30]
[363822915,1748887842032,-12500.0,0.00022191,2]
[363822916,1748887842043,-3742.59133857,0.00022191,2]
[363822917,1748887842053,-500.0,0.00022191,5]
[363822918,1748887842064,-527.15,0.00022191,2]
[363822919,1748887842074,-632.53,0.00022191,2]
[363822920,1748887842084,-879.0,0.00022191,2]
[363822921,1748887842094,-1283.18,0.00022191,2]
[363822922,1748887842104,-527.8,0.00022191,2]
[363822923,1748887842115,-895.61,0.00022191,2]
[363822924,1748887842125,-716.76,0.00022191,2]
[363822925,1748887842135,-924.88,0.00022191,2]
[363822926,1748887842146,-2161.52,0.00022191,2]
[363822927,1748887842159,-720.09,0.00022191,2]
[363822928,1748887842170,-1012.32,0.00022191,2]
[363822929,1748887842180,-765.99,0.00022191,2]
[363822930,1748887842190,-695.63,0.00022191,2]
[363822931,1748887842200,-347.0,0.00022192,7]
[363822933,1748887842210,-48318.36,0.000222,2]
[363822934,1748887842221,-1411.42197363,0.0002221,6]
[363822935,1748887842231,-840.67825308,0.00022252,2]
[363822937,1748887842241,-785.71082714,0.00022252,2]
[363822939,1748887842251,-1411.42197363,0.00022452,7]
[363822941,1748887842261,-200.0,0.00022465,30]
[363822943,1748887842271,-500.0,0.00022465,2]
[363822945,1748887842280,-527.15,0.00022465,2]
[363822947,1748887842290,-632.53,0.00022465,2]
[363822949,1748887842301,-879.0,0.00022465,2]
[363822950,1748887842310,-1283.18,0.00022465,2]
[363822951,1748887842320,-895.61,0.00022465,2]
[363822952,1748887842330,-716.76,0.00022465,2]
[363822954,1748887842340,-924.88,0.00022465,2]
[363822956,1748887842350,-2161.52,0.00022465,2]
[363822958,1748887842359,-720.09,0.00022465,2]
[363822961,1748887842370,-1012.32,0.00022465,2]
[363822964,1748887842380,-765.99,0.00022465,2]
[363822968,1748887842390,-695.63,0.00022465,2]
[363822971,1748887842399,-159.45006171,0.00022466,2]
[363822974,1748887842409,-2826.68843813,0.00022558,2]
[363822978,1748887842419,-594.9417706,0.00022568,2]
[363822981,1748887842428,-277.924172,0.00022603,2]
[363822984,1748887842438,-600.0,0.00022658,2]
[363822987,1748887842447,-3882.20693147,0.00022693,3]
[363822989,1748887842458,-1411.42197363,0.00022693,7]
[363822992,1748887842467,-5000.0,0.00022703,2]
[363822994,1748887842477,-3000.0,0.00022712,2]
[363822997,1748887842488,-1152.0,0.00022724,2]
[363822999,1748887842497,-203.57415183,0.00022739,30]
[363823001,1748887842507,-500.0,0.00022739,6]
[363823003,1748887842517,-527.28,0.00022739,2]
[363823005,1748887842527,-632.71,0.00022739,2]
[363823007,1748887842537,-879.12,0.00022739,2]
[363823009,1748887842547,-1283.2114,0.00022739,2]
[363823010,1748887842557,-895.78164436,0.00022739,2]
[363823012,1748887842567,-716.77547672,0.00022739,2]
[363823014,1748887842577,-925.07600343,0.00022739,2]
[363823016,1748887842586,-2161.60441925,0.00022739,2]
[363823018,1748887842596,-720.18,0.00022739,2]
[363823020,1748887842606,-1012.39147986,0.00022739,2]
[363823023,1748887842616,-766.14,0.00022739,2]
[363823025,1748887842627,-695.78,0.00022739,2]
[363823027,1748887842637,-594.9417706,0.0002277,2]
[363823028,1748887842647,-691.34,0.000228,7]
[363823031,1748887842657,-1131.338883,0.00022834,3]
[363823032,1748887842667,-261.79190508,0.00022876,2]
[363823035,1748887842677,-7899.91,0.00022881,2]
[363823036,1748887842687,-600.0,0.00022894,2]
[363823039,1748887842697,-1411.42197363,0.00022934,8]
[363823040,1748887842706,-364.4406513,0.00022959,2]
[363823043,1748887842716,-364.4406513,0.00022959,2]
[363823045,1748887842726,-364.4406513,0.00022959,2]
[363823046,1748887842736,-364.4406513,0.00022959,2]
[363823048,1748887842746,-364.4406513,0.00022959,2]
[363823050,1748887842755,-364.4406513,0.00022959,2]
[363823052,1748887842765,-364.4406513,0.00022959,2]
[363823054,1748887842774,-363.6824487,0.00022959,2]
[363823056,1748887842785,-364.4406513,0.00022959,2]